lending/lending_fUSD_20240830
["ID","MTS","AMOUNT","RATE_DAILY","PERIOD"]
[336672421,1725006998384,-561.76,0.00025479,30]
[336672422,1725006998408,-561.76,0.00025479,30]
[336672423,1725006998435,-561.76,0.00025479,30]
[336672424,1725006998459,-561.76,0.00025479,30]
[336672425,1725006998485,-561.76,0.00025479,30]
[336672426,1725006998509,-561.76,0.00025479,30]
[336672427,1725006998534,-561.76,0.00025479,30]
[336672428,1725006998558,-561.76,0.00025479,30]
[336672429,1725006998583,-561.76,0.00025479,30]
[336672430,1725006998608,-561.76,0.00025479,30]
[336672431,1725006998632,-561.96876807,0.00025479,30]
[336672432,1725006998658,-179.72,0.00025559,120]
[336672433,1725006998681,-2000.0,0.00025587,120]
[336672434,1725006998706,-700.0,0.00026,120]
[336672435,1725006998733,-1100.0,0.00026,60]
[336672436,1725006998767,-161.49004978,0.0002663,30]
[336672437,1725006998792,-500.0,0.00026721,120]
[336672438,1725006998819,-161.49004978,0.00026795,30]
[336672439,1725006998843,-688.0,0.000268,120]
[336672440,1725006998867,-181.45,0.00026886,120]
[336672441,1725006998891,-161.49004978,0.00026932,30]
[336672442,1725006998915,-502.96246,0.00026937,120]
[336672443,1725006998938,-2000.0,0.00026937,120]
[336672444,1725006998961,-200.0,0.00026937,120]
[336672445,1725006998990,-800.0,0.00026986,120]
[336672446,1725006999014,-800.0,0.00026986,120]
[336672447,1725006999038,-453.92004986,0.00027,120]
[336672448,1725006999061,-453.92004984,0.00027,120]
[336672449,1725006999084,-161.49004978,0.00027068,30]
[336672450,1725006999110,-841.999999,0.000271,120]
[336672451,1725006999135,-161.49004978,0.00027205,30]
[336672452,1725006999159,-161.49004978,0.00027342,30]
[336672453,1725006999183,-295.20097657,0.0002739,30]
[336672454,1725006999207,-2000.0,0.00027397,30]
[336672455,1725006999232,-2000.0,0.00027397,30]
[336672456,1725006999258,-2000.0,0.00027397,30]
[336672457,1725006999282,-2000.0,0.00027397,30]
[336672458,1725006999307,-2000.0,0.00027397,30]
[336672459,1725006999333,-2000.0,0.00027397,30]
[336672460,1725006999357,-2000.0,0.00027397,30]
[336672461,1725006999384,-2000.0,0.00027397,30]
[336672462,1725006999410,-2000.0,0.00027397,30]
[336672463,1725006999433,-2000.0,0.00027397,30]
[336672464,1725006999456,-2000.0,0.00027397,30]
[336672465,1725006999479,-2000.0,0.00027397,30]
[336672466,1725006999503,-2000.0,0.00027397,30]
[336672467,1725006999526,-2000.0,0.00027397,30]
[336672468,1725006999549,-2000.0,0.00027397,30]
[336672469,1725006999572,-2000.0,0.00027397,30]
[336672470,1725006999595,-2000.0,0.00027397,30]
[336672471,1725006999620,-2000.0,0.00027397,30]
[336672472,1725006999644,-2000.0,0.00027397,30]
[336672473,1725006999668,-959.99542764,0.00027397,30]
[336672474,1725006999692,-200.0,0.00027397,60]
[336672475,1725006999718,-1733.69,0.000274,30]
[336672476,1725006999748,-1733.69,0.000274,30]
[336672477,1725006999773,-1733.69,0.000274,30]
[336672478,1725006999798,-1733.69,0.000274,30]
[336672479,1725006999822,-1733.69,0.000274,30]
[336672480,1725006999846,-1733.69,0.000274,30]
[336672481,1725006999870,-1733.69,0.000274,30]
[336672482,1725006999896,-1733.69,0.000274,30]
[336672483,1725006999920,-1733.69,0.000274,30]
[336672484,1725006999943,-1733.69,0.000274,30]
[336672485,1725006999968,-161.49004978,0.00027507,30]
[336672486,1725006999995,-161.49004978,0.00027644,30]
[336672487,1725007000018,-500.0,0.00027657,30]
[336672488,1725007000042,-161.49004978,0.00027781,30]
[336672489,1725007000066,-417.09,0.00027912,30]
[336672490,1725007000090,-161.49004978,0.00027918,30]
[336672491,1725007000115,-2000.0,0.00028,120]
[336672492,1725007000139,-888.0,0.00028,120]
[336672493,1725007000163,-161.49004978,0.00028082,30]
[336672494,1725007000187,-455.0,0.00028088,120]
[336672495,1725007000211,-161.49004978,0.00028219,30]
[336672496,1725007000238,-179.72,0.00028399,120]
[336672497,1725007000263,-1000.0,0.000287,120]
[336672498,1725007000286,-1199.07138929,0.00028767,120]
[336672499,1725007000313,-150.0,0.0002877,120]
[336672500,1725007000340,-150.0,0.00029099,120]
[336672501,1725007000369,-453.92004986,0.000295,120]
[336672502,1725007000398,-181.45,0.00029574,120]
[336672503,1725007000685,-50000.0,0.0003,30]
[336672504,1725007000713,-151.0,0.0003,120]
[336672505,1725007000742,-151.0,0.0003,120]
[336672506,1725007000767,-200.06894095,0.0003,120]
[336672507,1725007000792,-2000.0,0.0003,120]
[336672508,1725007000818,-1100.0,0.0003,120]
[336672509,1725007000843,-1216.5026915,0.0003,30]
[336672510,1725007000870,-200.0,0.00030137,60]
[336672511,1725007000897,-548.0,0.00030613,30]
[336672512,1725007000923,-250.0,0.000308,30]
[336672513,1725007000952,-50000.0,0.00031,31]
[336672514,1725007000976,-150.00364387,0.00031,120]
[336672515,1725007001003,-417.09,0.00031073,30]
[336672516,1725007001027,-151.0,0.00031178,120]
[336672517,1725007001054,-179.72,0.00031239,120]
[336672518,1725007001081,-2018.00667659,0.000315,30]
[336672519,1725007001107,-150.0,0.00031503,120]
[336672520,1725007001133,-150.0,0.00031685,120]
[336672521,1725007001160,-194.14,0.00031823,120]
[336672522,1725007001192,-50000.0,0.00032,32]
[336672523,1725007001218,-453.92004986,0.00032,120]
[336672524,1725007001243,-1186.78901328,0.00032,33]
[336672525,1725007001266,-2000.0,0.00032,120]
[336672526,1725007001291,-150.0,0.00032097,120]
[336672527,1725007001315,-150.0,0.000321,120]
[336672528,1725007001340,-150.0,0.00032109,120]
[336672529,1725007001366,-181.45,0.00032263,120]
[336672530,1725007001392,-151.0,0.00032356,120]
[336672531,1725007001418,-5133.0,0.000327,35]
[336672532,1725007001442,-500.0,0.00032876,80]
[336672533,1725007001466,-500.0,0.00032876,80]
[336672534,1725007001489,-500.0,0.00032876,80]
[336672535,1725007001514,-500.0,0.00032876,80]
[336672536,1725007001541,-500.0,0.00032876,80]
[336672537,1725007001566,-500.0,0.00032876,80]
[336672538,1725007001590,-500.0,0.00032876,80]
[336672539,1725007001614,-500.0,0.00032876,80]
[336672540,1725007001641,-500.0,0.00032876,80]
[336672541,1725007001666,-500.0,0.00032876,80]
[336672542,1725007001690,-500.0,0.00032876,80]
[336672543,1725007001713,-500.0,0.00032876,80]
[336672544,1725007001741,-500.0,0.00032876,80]
[336672545,1725007001767,-500.0,0.00032876,80]
[336672546,1725007001790,-500.0,0.00032876,80]
[336672547,1725007001818,-500.0,0.00032876,80]
[336672548,1725007001843,-500.0,0.00032876,80]
[336672549,1725007001868,-500.0,0.00032876,80]
[336672550,1725007001895,-500.0,0.00032876,80]
[336672551,1725007001921,-500.0,0.00032876,80]
[336672552,1725007001949,-500.0,0.00032876,80]
[336672553,1725007001974,-545.30153776,0.00032876,80]
[336672554,1725007002002,-200.0,0.00032877,60]
[336672555,1725007002028,-50000.0,0.00033,33]
[336672556,1725007002052,-577.86005159,0.00033,90]
[336672557,1725007002077,-426.78,0.00033151,120]
[336672558,1725007002104,-268.41,0.000335,31]
[336672559,1725007002131,-268.41,0.000335,31]
[336672560,1725007002157,-268.41,0.000335,31]
[336672561,1725007002182,-268.41,0.000335,31]
[336672562,1725007002208,-268.41,0.000335,31]
[336672563,1725007002234,-268.41,0.000335,31]
[336672564,1725007002260,-268.41,0.000335,31]
[336672565,1725007002287,-268.41,0.000335,31]
[336672566,1725007002313,-268.41,0.000335,31]
[336672567,1725007002339,-268.41,0.000335,31]
[336672568,1725007002367,-268.41,0.000335,31]
[336672569,1725007002394,-268.41,0.000335,31]
[336672570,1725007002419,-151.0,0.00033534,120]
[336672571,1725007002445,-150.0,0.00033671,120]
[336672572,1725007002470,-768.0,0.00033674,30]
[336672573,1725007002498,-150.0,0.00033833,120]
[336672574,1725007002526,-50000.0,0.00034,34]
[336672575,1725007002550,-2000.0,0.00034,120]
[336672576,1725007002574,-1100.0,0.00034,120]
[336672577,1725007002598,-1003.20876004,0.00034,120]
[336672578,1725007002621,-2044.10481651,0.00034,30]
[336672579,1725007002646,-150.0,0.00034033,120]
[336672580,1725007002672,-179.72,0.00034079,120]
[336672581,1725007002697,-417.09,0.00034234,30]
[336672582,1725007002723,-453.92004986,0.000345,120]
[336672583,1725007002752,-2000.0,0.00034553,120]
[336672584,1725007002777,-150.0,0.00034672,120]
[336672585,1725007002804,-151.0,0.00034712,120]
[336672586,1725007002830,-212.0,0.0003476,30]
[336672587,1725007002858,-50000.0,0.00035,35]
[336672588,1725007002883,-200.0,0.00035,120]
[336672589,1725007002907,-1000.0,0.00035,120]
[336672590,1725007002931,-1122.78239993,0.00035,60]
[336672591,1725007002955,-701.57068297,0.00035,30]
[336672592,1725007002979,-3000.0,0.00035,30]
[336672593,1725007003004,-150.0,0.00035,30]
[336672594,1725007003028,-13946.10953379,0.0003504,30]
[336672595,1725007003051,-1061.11294645,0.0003504,30]
[336672596,1725007003076,-150.0,0.0003509,120]
[336672597,1725007003102,-268.41,0.000351,31]
[336672598,1725007003127,-268.41,0.000351,31]
[336672599,1725007003153,-268.41,0.000351,31]
[336672600,1725007003179,-268.41,0.000351,31]
[336672601,1725007003205,-268.41,0.000351,31]
[336672602,1725007003231,-268.41,0.000351,31]
[336672603,1725007003258,-268.41,0.000351,31]
[336672604,1725007003283,-268.41,0.000351,31]
[336672605,1725007003309,-268.41,0.000351,31]
[336672606,1725007003334,-268.41,0.000351,31]
[336672607,1725007003590,-268.41,0.000351,31]
[336672608,1725007003617,-268.41,0.000351,31]
[336672609,1725007003643,-268.41,0.000351,31]
[336672610,1725007003670,-268.41,0.000351,31]
[336672611,1725007003697,-268.41,0.000351,31]
[336672612,1725007003724,-268.41,0.000351,31]
[336672613,1725007003752,-268.41,0.000351,31]
[336672614,1725007003779,-268.41,0.000351,31]
[336672615,1725007003807,-268.41,0.000351,31]
[336672616,1725007003834,-268.41,0.000351,31]
[336672617,1725007003860,-268.41,0.000351,31]
[336672618,1725007003887,-268.41,0.000351,31]
[336672619,1725007003915,-268.41,0.000351,31]
[336672620,1725007003941,-268.41,0.000351,31]
[336672621,1725007003968,-150.0,0.00035359,120]
[336672622,1725007003994,-779.82322145,0.000356,30]
[336672623,1725007004018,-200.0,0.00035616,60]
[336672624,1725007004044,-150.082776,0.00035698,119]
[336672625,1725007004069,-151.0,0.0003589,120]
[336672626,1725007004094,-150.082776,0.00035898,120]
[336672627,1725007004120,-150.0,0.00035965,120]
[336672628,1725007004146,-50000.0,0.00036,36]
[336672629,1725007004170,-2000.0,0.00036,120]
[336672630,1725007004196,-150.082776,0.00036098,118]
[336672631,1725007004219,-5647.4,0.00036114,54]
[336672632,1725007004242,-212.0,0.0003627,30]
[336672633,1725007004267,-150.082776,0.00036298,119]
[336672634,1725007004290,-150.082776,0.00036498,120]
[336672635,1725007004314,-151.0,0.00036658,120]
[336672636,1725007004338,-150.082776,0.00036698,118]
[336672637,1725007004365,-268.41,0.000367,31]
[336672638,1725007004390,-268.41,0.000367,31]
[336672639,1725007004419,-268.41,0.000367,31]
[336672640,1725007004447,-268.41,0.000367,31]
[336672641,1725007004476,-268.41,0.000367,31]
[336672642,1725007004501,-268.41,0.000367,31]
[336672643,1725007004528,-268.41,0.000367,31]
[336672644,1725007004558,-268.41,0.000367,31]
[336672645,1725007004583,-268.41,0.000367,31]
[336672646,1725007004610,-268.41,0.000367,31]
[336672647,1725007004635,-268.41,0.000367,31]
[336672648,1725007004662,-268.41,0.000367,31]
[336672649,1725007004689,-268.41,0.000367,31]
[336672650,1725007004715,-268.41,0.000367,31]
[336672651,1725007004750,-268.41,0.000367,31]
[336672652,1725007004779,-268.41,0.000367,31]
[336672653,1725007004807,-268.41,0.000367,31]
[336672654,1725007004834,-268.41,0.000367,31]
[336672655,1725007004861,-268.41,0.000367,31]
[336672656,1725007004887,-268.41,0.000367,31]
[336672657,1725007004914,-268.41,0.000367,31]
[336672658,1725007004940,-268.41,0.000367,31]
[336672659,1725007004968,-268.41,0.000367,31]
[336672660,1725007004994,-268.41,0.000367,31]
[336672661,1725007005019,-150.0,0.00036808,120]
[336672662,1725007005045,-150.0,0.00036873,120]
[336672663,1725007005070,-150.083016,0.00036898,119]
[336672664,1725007005097,-50000.0,0.00037,37]
[336672665,1725007005122,-15500.0,0.00037,30]
[336672666,1725007005147,-500000.0,0.00037,80]
[336672667,1725007005171,-253.0,0.00037042,30]
[336672668,1725007005195,-151.0,0.00037068,120]
[336672669,1725007005220,-150.0,0.00037071,120]
[336672670,1725007005246,-150.083016,0.00037098,120]
[336672671,1725007005271,-150.083016,0.00037298,118]
[336672672,1725007005295,-150.0,0.00037381,120]
[336672673,1725007005320,-417.09,0.00037395,30]
[336672674,1725007005349,-150.0,0.00037488,120]
[336672675,1725007005375,-150.083016,0.00037498,119]
[336672676,1725007005399,-150.0,0.00037636,120]
[336672677,1725007005426,-150.0,0.00037693,120]
[336672678,1725007005452,-150.083016,0.00037698,120]
[336672679,1725007005478,-212.0,0.0003778,30]
[336672680,1725007005504,-150.0,0.00037806,120]
[336672681,1725007005530,-150.083016,0.00037898,118]
[336672682,1725007005558,-50000.0,0.00038,38]
[336672683,1725007005584,-500000.0,0.00038,90]
[336672684,1725007005608,-2116.75643236,0.00038,120]
[336672685,1725007005634,-500.0,0.00038,120]
[336672686,1725007005658,-2000.0,0.00038,120]
[336672687,1725007005682,-6385.88561325,0.00038,120]
[336672688,1725007005706,-1100.0,0.00038,120]
[336672689,1725007005733,-150.083016,0.00038098,119]
[336672690,1725007005766,-268.41,0.000382,31]
[336672691,1725007005793,-268.41,0.000382,31]
[336672692,1725007005821,-268.41,0.000382,31]
[336672693,1725007005848,-268.41,0.000382,31]
[336672694,1725007005875,-268.41,0.000382,31]
[336672695,1725007005905,-268.41,0.000382,31]
[336672696,1725007005932,-268.41,0.000382,31]
[336672697,1725007005959,-268.41,0.000382,31]
[336672698,1725007005987,-268.41,0.000382,31]
[336672699,1725007006020,-268.41,0.000382,31]
[336672700,1725007006046,-268.41,0.000382,31]
[336672701,1725007006072,-268.41,0.000382,31]
[336672702,1725007006099,-268.41,0.000382,31]
[336672703,1725007006125,-268.41,0.000382,31]
[336672704,1725007006151,-268.41,0.000382,31]
[336672705,1725007006176,-268.41,0.000382,31]
[336672706,1725007006203,-268.41,0.000382,31]
[336672707,1725007006229,-268.41,0.000382,31]
[336672708,1725007006255,-268.41,0.000382,31]
[336672709,1725007006281,-268.41,0.000382,31]
[336672710,1725007006550,-268.41,0.000382,31]
[336672711,1725007006578,-268.41,0.000382,31]
[336672712,1725007006604,-268.41,0.000382,31]
[336672713,1725007006631,-268.41,0.000382,31]
[336672714,1725007006654,-151.0,0.00038247,120]
[336672715,1725007006678,-150.083016,0.00038298,120]
[336672716,1725007006702,-2050.25,0.00038356,120]
[336672717,1725007006728,-1424.48,0.00038356,120]
[336672718,1725007006754,-2000.0,0.00038356,120]
[336672719,1725007006779,-2000.0,0.00038356,120]
[336672720,1725007006805,-2000.0,0.00038356,120]
[336672721,1725007006830,-2000.0,0.00038356,120]
[336672722,1725007006857,-2000.0,0.00038356,120]
[336672723,1725007006883,-2000.0,0.00038356,120]
[336672724,1725007006910,-2000.0,0.00038356,120]
[336672725,1725007006936,-2000.0,0.00038356,120]
[336672726,1725007006964,-2000.0,0.00038356,120]
[336672727,1725007006993,-2000.0,0.00038356,120]
[336672728,1725007007019,-2000.0,0.00038356,120]
[336672729,1725007007043,-2000.0,0.00038356,120]
[336672730,1725007007068,-2000.0,0.00038356,120]
[336672731,1725007007093,-1051.2014256,0.00038356,120]
[336672732,1725007007122,-250.26650012,0.00038356,60]
[336672733,1725007007150,-150.0,0.00038364,120]
[336672734,1725007007176,-639.769619,0.000384,33]
[336672735,1725007007203,-150.083016,0.00038498,118]
[336672736,1725007007228,-10000.0,0.000385,40]
[336672737,1725007007255,-2050.25,0.0003863,120]
[336672738,1725007007281,-1424.48,0.0003863,120]
[336672739,1725007007307,-150.083016,0.00038698,119]
[336672740,1725007007336,-1000.0,0.00038736,120]
[336672741,1725007007363,-150.083016,0.00038898,120]
[336672742,1725007007389,-1412.45858078,0.000389,30]
[336672743,1725007007415,-2050.25,0.00038904,120]
[336672744,1725007007440,-1424.48,0.00038904,120]
[336672745,1725007007467,-50000.0,0.00039,39]
[336672746,1725007007492,-600.0,0.00039,120]
[336672747,1725007007516,-600.0,0.00039,120]
[336672748,1725007007540,-600.0,0.00039,120]
[336672749,1725007007564,-600.0,0.00039,120]
[336672750,1725007007588,-269.31954189,0.00039,120]
[336672751,1725007007612,-8000.0,0.00039,120]
[336672752,1725007007636,-160.0,0.00039,30]
[336672753,1725007007660,-243.72990468,0.00039,31]
[336672754,1725007007684,-132000.4,0.00039,90]
[336672755,1725007007707,-2000.0,0.00039,32]
[336672756,1725007007735,-150.083016,0.00039098,118]
[336672757,1725007007760,-2050.25,0.00039178,120]
[336672758,1725007007785,-1424.48,0.00039178,120]
[336672759,1725007007809,-1183.36,0.00039208,30]
[336672760,1725007007834,-150.0,0.00039225,120]
[336672761,1725007007857,-212.0,0.0003928,30]
[336672762,1725007007881,-150.083016,0.00039298,119]
[336672763,1725007007905,-569.6464583,0.000394,30]
[336672764,1725007007928,-5000.0,0.000394,120]
[336672765,1725007007952,-1183.36,0.00039408,30]
[336672766,1725007007976,-151.0,0.00039425,120]
[336672767,1725007008001,-2050.25,0.00039452,120]
[336672768,1725007008024,-1424.48,0.00039452,120]
[336672769,1725007008049,-150.083016,0.00039498,120]
[336672770,1725007008074,-914329.4549301,0.000395,30]
[336672771,1725007008097,-758.8047262,0.000395,32]
[336672772,1725007008121,-5000.0,0.000395,120]
[336672773,1725007008145,-263.4571727,0.000395,30]
[336672774,1725007008169,-6159.59,0.00039529,74]
[336672775,1725007008193,-164.776221,0.0003954,30]
[336672776,1725007008217,-272.34768353,0.00039585,30]
[336672777,1725007008242,-336.26,0.00039589,120]
[336672778,1725007008266,-1500000.0,0.000396,30]
[336672779,1725007008290,-191.27933755,0.000396,30]
[336672780,1725007008314,-847.11806957,0.00039603,30]
[336672781,1725007008338,-1353.02707687,0.00039605,30]
[336672782,1725007008361,-1183.36,0.00039608,30]
[336672783,1725007008385,-191.27933755,0.00039611,30]
[336672784,1725007008410,-1353.02707687,0.00039625,30]
[336672785,1725007008435,-1353.02707687,0.00039628,30]
[336672786,1725007008459,-191.27933755,0.00039637,30]
[336672787,1725007008484,-847.11806957,0.00039638,30]
[336672788,1725007008510,-1353.02707687,0.00039658,30]
[336672789,1725007008534,-847.11806957,0.00039658,30]
[336672790,1725007008559,-272.34768353,0.0003966,30]
[336672791,1725007008583,-847.11806957,0.00039671,30]
[336672792,1725007008607,-1353.02707687,0.00039672,30]
[336672793,1725007008631,-191.27933755,0.00039676,30]
[336672794,1725007008655,-847.11806957,0.00039677,30]
[336672795,1725007008679,-272.34768353,0.00039687,30]
[336672796,1725007008705,-191.27933755,0.00039688,30]
[336672797,1725007008732,-272.34768353,0.00039694,30]
[336672798,1725007008756,-272.34768353,0.00039696,30]
[336672799,1725007008782,-150.083016,0.00039698,118]
[336672800,1725007008808,-2445.0,0.000397,30]
[336672801,1725007008834,-1000.0,0.00039726,120]
[336672802,1725007008858,-1988.73399784,0.00039726,30]
[336672803,1725007008884,-2050.25,0.00039726,120]
[336672804,1725007008908,-1424.48,0.00039726,120]
[336672805,1725007008934,-2000.0,0.00039799,120]
[336672806,1725007008959,-200.0,0.00039799,120]
[336672807,1725007008983,-136087.66115882,0.000398,90]
[336672808,1725007009010,-2122.93,0.000398,30]
[336672809,1725007009037,-268.41,0.000398,31]
[336672810,1725007009065,-268.41,0.000398,31]
[336672811,1725007009092,-268.41,0.000398,31]
[336672812,1725007009119,-268.41,0.000398,31]
[336672813,1725007009385,-268.41,0.000398,31]
[336672814,1725007009414,-268.41,0.000398,31]
[336672815,1725007009441,-268.41,0.000398,31]
[336672816,1725007009468,-268.41,0.000398,31]
[336672817,1725007009497,-268.41,0.000398,31]
[336672818,1725007009524,-268.41,0.000398,31]
[336672819,1725007009551,-268.41,0.000398,31]
[336672820,1725007009579,-268.41,0.000398,31]
[336672821,1725007009606,-268.41,0.000398,31]
[336672822,1725007009633,-268.41,0.000398,31]
[336672823,1725007009662,-268.41,0.000398,31]
[336672824,1725007009689,-268.41,0.000398,31]
[336672825,1725007009713,-1183.36,0.00039808,30]
[336672826,1725007009739,-423.32931107,0.0003988,30]
[336672827,1725007009764,-150.083006,0.00039898,119]
[336672828,1725007009790,-348.2225122,0.00039898,120]
[336672829,1725007009815,-583.11241758,0.00039898,90]
[336672830,1725007009839,-793.25394847,0.00039898,90]
[336672831,1725007009863,-2698.0,0.00039899,60]
[336672832,1725007009890,-179.14161949,0.000399,60]
[336672833,1725007009914,-9121.90791564,0.000399,120]
[336672834,1725007009938,-1022.92763097,0.000399,90]
[336672835,1725007009963,-249.999999,0.00039999,30]
[336672836,1725007009992,-50000.0,0.0004,30]
[336672837,1725007010020,-50000.0,0.0004,40]
[336672838,1725007010044,-477.12749073,0.0004,30]
[336672839,1725007010071,-1982.42568277,0.0004,120]
[336672840,1725007010097,-2408.80192019,0.0004,120]
[336672841,1725007010124,-2937.22455872,0.0004,30]
[336672842,1725007010149,-765.31393653,0.0004,120]
[336672843,1725007010174,-437.20540597,0.0004,120]
[336672844,1725007010200,-1483.97288162,0.0004,30]
[336672845,1725007010224,-333.69370517,0.0004,30]
[336672846,1725007010249,-1586.47126205,0.0004,120]
[336672847,1725007010273,-1046.68122321,0.0004,30]
[336672848,1725007010296,-824.52982415,0.0004,120]
[336672849,1725007010319,-344.65089703,0.0004,120]
[336672850,1725007010343,-571.47817801,0.0004,30]
[336672851,1725007010367,-1167.63314324,0.0004,120]
[336672852,1725007010390,-2476.81076553,0.0004,120]
[336672853,1725007010414,-421.26786215,0.0004,120]
[336672854,1725007010437,-240.29452645,0.0004,30]
[336672855,1725007010464,-1691.35649228,0.0004,120]
[336672856,1725007010487,-316.67654157,0.0004,120]
[336672857,1725007010510,-2850.77283596,0.0004,120]
[336672858,1725007010534,-619.77257675,0.0004,120]
[336672859,1725007010557,-200.0,0.0004,120]
[336672860,1725007010582,-1000000.0,0.0004,120]
[336672861,1725007010606,-50000.0,0.0004,120]
[336672862,1725007010635,-500.0,0.0004,120]
[336672863,1725007010663,-11000.0,0.0004,120]
[336672864,1725007010691,-1497.02279466,0.0004,120]
[336672865,1725007010719,-163.53340457,0.0004,120]
[336672866,1725007010750,-3000.0,0.0004,60]
[336672867,1725007010778,-1016.0,0.0004,120]
[336672868,1725007010807,-1324.72773059,0.0004,120]
[336672869,1725007010836,-10000.0,0.0004,120]
[336672870,1725007010865,-2000.0,0.0004,120]
[336672871,1725007010894,-2000.0,0.0004,120]
[336672872,1725007010923,-3000.0,0.0004,120]
[336672873,1725007010954,-3000.0,0.0004,120]
[336672874,1725007010983,-3000.0,0.0004,120]
[336672875,1725007011015,-963.91571055,0.0004,120]
[336672876,1725007011045,-3000.0,0.0004,75]
[336672877,1725007011073,-5000.0,0.0004,30]
[336672878,1725007011101,-15270.64,0.0004,120]
[336672879,1725007011129,-493.36336688,0.0004,120]
[336672880,1725007011156,-59265.4,0.0004,120]
[336672881,1725007011184,-410.0,0.0004,120]
[336672882,1725007011212,-200.0,0.0004,120]
[336672883,1725007011241,-3051.86772192,0.0004,120]
[336672884,1725007011269,-2374.08,0.0004,120]
[336672885,1725007011296,-982.0,0.0004,120]
[336672886,1725007011323,-329.31001705,0.0004,30]
[336672887,1725007011350,-250.0,0.0004,120]
[336672888,1725007011376,-2573.21687585,0.0004,60]
[336672889,1725007011403,-514.05019444,0.0004,120]
[336672890,1725007011429,-2116.75643236,0.0004,120]
[336672891,1725007011457,-5000.0,0.0004,120]
[336672892,1725007011485,-2046.35,0.0004,36]
[336672893,1725007011513,-5022.8871833,0.0004,120]
[336672894,1725007011540,-308.28,0.0004,120]
[336672895,1725007011566,-846.76,0.0004,120]
[336672896,1725007011594,-350.47,0.0004,120]
[336672897,1725007011622,-3518.19,0.0004,120]
[336672898,1725007011651,-4480.65,0.0004,120]
[336672899,1725007011681,-5010.48,0.0004,120]
[336672900,1725007011711,-2050.25,0.0004,120]
[336672901,1725007011741,-1424.48,0.0004,120]
[336672902,1725007011769,-154.788265,0.0004,120]
[336672903,1725007011799,-150.083006,0.00040098,120]
[336672904,1725007011829,-2184.42093886,0.000402,120]
[336672905,1725007011856,-106469.56802443,0.000402,120]
[336672906,1725007025856,-293691.08057779,0.000402,120]
[336672907,1725007025888,-150.0,0.000402,120]
[336672908,1725007025920,-1183.36,0.00040208,30]
[336672909,1725007025951,-1424.48,0.00040273,120]
[336672910,1725007025981,-150.083006,0.00040298,118]
[336672911,1725007026014,-1183.36,0.00040408,30]
[336672912,1725007026046,-150.083006,0.00040498,119]
[336672913,1725007026075,-8400.0,0.000405,120]
[336672914,1725007026105,-1424.48,0.00040547,120]
[336672915,1725007026134,-417.09,0.00040556,120]
[336672916,1725007026164,-151.0,0.00040603,120]
[336672917,1725007026193,-1183.36,0.00040608,30]
[336672918,1725007026224,-150.083006,0.00040698,120]
[336672919,1725007026257,-150.0,0.000407,30]
[336672920,1725007026287,-150.0,0.00040709,120]